bitfinex/quotes_BTCUSD_20250313
["timestamp","ask_amount","ask_price","bid_price","bid_amount"]
[1741846165939,0.0133353,83196.0,83190.0,0.01202]
[1741846166123,0.01202,83193.0,83187.0,0.012021]
[1741846166338,0.252426,83193.0,83187.0,0.012021]
[1741846166544,0.012019,83195.0,83190.0,0.01202]
[1741846166752,0.012019,83195.0,83189.0,0.01202]
[1741846166955,0.252429,83192.0,83184.0,0.012021]
[1741846167165,0.0013163,83182.0,83181.0,0.012021]
[1741846167551,0.0013163,83181.0,83178.0,0.012022]
[1741846167769,0.0013163,83181.0,83180.0,0.160262]
[1741846169218,0.0023163,83181.0,83180.0,0.160262]
[1741846170650,0.001,83181.0,83180.0,0.16146416]
[1741846170858,0.001,83181.0,83180.0,0.16146398]
[1741846171066,0.001,83181.0,83180.0,0.23886398]
[1741846171279,0.001,83181.0,83180.0,0.237662]
[1741846171477,0.002,83181.0,83180.0,0.237662]
[1741846171822,0.001,83181.0,83180.0,0.237662]
[1741846172022,0.24050669,83201.0,83180.0,0.237662]
[1741846172023,0.0013163,83192.0,83191.0,0.25243]
[1741846172224,0.0013163,83192.0,83191.0,0.30003]
[1741846172487,0.0013163,83192.0,83191.0,0.0496]
[1741846172714,0.0013163,83192.0,83191.0,0.25243]
[1741846173355,0.0023163,83192.0,83191.0,0.25243]
[1741846174012,0.0023163,83192.0,83191.0,1.75243]
[1741846174572,0.0023163,83192.0,83191.0,1.75743]
[1741846175263,0.0023163,83192.0,83191.0,1.505]
[1741846175471,0.0023163,83192.0,83191.0,1.51702]
[1741846176442,0.0023163,83192.0,83191.0,1.5171894]
[1741846178364,0.0023163,83192.0,83191.0,0.0171894]
[1741846178965,0.0023163,83192.0,83191.0,1.5171894]
[1741846182016,0.0023163,83192.0,83191.0,0.0171894]
[1741846182441,0.0023163,83192.0,83191.0,1.5171894]
[1741846183852,0.0023163,83192.0,83191.0,1.5051694]
[1741846184060,0.2547433,83192.0,83191.0,0.0051694]
[1741846184871,0.2537433,83192.0,83191.0,0.0051694]
[1741846185078,0.0133363,83192.0,83191.0,0.0001694]
[1741846185295,0.0133363,83192.0,83191.0,0.0011694]
[1741846185659,0.240406,83193.0,83191.0,0.0011694]
[1741846186304,0.01202,83192.0,83191.0,0.0011694]
[1741846188199,0.01202,83192.0,83191.0,0.0001694]
[1741846188439,0.01202,83192.0,83191.0,0.0011694]
[1741846188670,0.012359,83192.0,83191.0,0.0001694]
[1741846188915,0.000339,83192.0,83191.0,0.0001694]
[1741846189113,0.012359,83192.0,83191.0,0.0011694]
[1741846192840,0.136759,83192.0,83191.0,0.0011694]
[1741846193899,0.090759,83192.0,83191.0,0.0001694]
[1741846194116,0.000339,83192.0,83191.0,0.0001694]
[1741846194321,0.004339,83192.0,83191.0,0.0121894]
[1741846194737,0.004339,83192.0,83191.0,1.5121894]
[1741846195147,0.006339,83192.0,83191.0,1.5121894]
[1741846195555,0.000339,83192.0,83191.0,1.5121894]
[1741846195974,0.000339,83192.0,83191.0,1.5141894]
[1741846196812,0.000339,83192.0,83191.0,1.5021694]
[1741846196978,0.012359,83192.0,83191.0,1.5021694]
[1741846197160,0.012359,83192.0,83191.0,1.5041694]
[1741846197371,0.000339,83192.0,83191.0,1.5041694]
[1741846198870,0.000339,83192.0,83191.0,1.5161894]
[1741846199560,0.000339,83192.0,83191.0,1.5041694]
[1741846200876,0.000339,83192.0,83191.0,1.5161894]
[1741846201438,0.000339,83192.0,83191.0,0.0161894]
[1741846203576,0.000339,83192.0,83191.0,0.0041694]
[1741846204024,0.000339,83192.0,83191.0,0.0161894]
[1741846206206,0.000339,83192.0,83191.0,1.5161894]
[1741846206427,0.000339,83192.0,83191.0,0.0161894]
[1741846206906,0.000339,83192.0,83191.0,0.0041694]
[1741846207109,0.000339,83192.0,83191.0,0.0161894]
[1741846208371,0.000339,83192.0,83191.0,0.0041694]
[1741846209012,0.012359,83192.0,83191.0,0.0041694]
[1741846210402,0.012359,83192.0,83191.0,0.0021694]
[1741846210607,0.012359,83192.0,83191.0,0.0121894]
[1741846210608,0.002339,83192.0,83191.0,0.0121894]
[1741846211258,0.006339,83192.0,83191.0,0.0121894]
[1741846211617,0.000339,83192.0,83191.0,0.0121894]
[1741846212024,0.000339,83192.0,83191.0,0.0161894]
[1741846212229,0.000339,83192.0,83191.0,0.0141894]
[1741846212568,0.000339,83192.0,83191.0,0.0121894]
[1741846213381,0.000339,83192.0,83191.0,0.16023396]
[1741846213581,1e-06,83192.0,83191.0,0.27627439]
[1741846213722,1e-06,83192.0,83191.0,0.27807244]
[1741846213927,1e-06,83192.0,83191.0,0.29023041]
[1741846214570,1e-06,83192.0,83191.0,0.28723041]
[1741846214773,1e-06,83192.0,83191.0,0.28923041]
[1741846214942,0.001001,83192.0,83191.0,0.29523041]
[1741846215144,0.001001,83192.0,83191.0,0.29323041]
[1741846215553,0.002001,83192.0,83191.0,0.29623041]
[1741846216370,0.002001,83192.0,83191.0,1.79623041]
[1741846217242,0.002001,83192.0,83191.0,1.67628822]
[1741846217905,0.002001,83192.0,83191.0,1.79623041]
[1741846218352,0.002001,83192.0,83191.0,1.67628822]
[1741846221510,0.002001,83192.0,83191.0,0.22420737]
[1741846221769,0.002001,83192.0,83191.0,0.23995007]
[1741846221993,0.002001,83192.0,83191.0,0.23874822]
[1741846222818,0.002001,83192.0,83191.0,0.35869041]
[1741846223253,0.002001,83192.0,83191.0,0.35853041]
[1741846225146,0.002001,83192.0,83191.0,0.23858822]
[1741846225355,0.002001,83192.0,83191.0,1.00178822]
[1741846226186,0.002001,83192.0,83191.0,2.50178822]
[1741846228001,0.002001,83192.0,83191.0,2.62173041]
[1741846232586,0.002001,83192.0,83191.0,2.62173041]
[1741846234227,0.002001,83192.0,83191.0,2.60957244]
[1741846234794,0.002001,83192.0,83191.0,2.56327244]
[1741846235030,0.002001,83192.0,83191.0,2.44333025]
[1741846237137,0.002001,83192.0,83191.0,2.4525606]
[1741846237455,0.002001,83192.0,83191.0,2.46461115]
[1741846237699,0.002001,83192.0,83191.0,2.29893025]
[1741846237974,0.002001,83192.0,83191.0,2.44193025]
[1741846238632,0.002001,83192.0,83191.0,2.46617356]
[1741846240975,0.002001,83192.0,83191.0,0.96617356]
[1741846241435,0.002001,83192.0,83191.0,2.46617356]
[1741846241644,0.002001,83192.0,83191.0,2.47501023]
[1741846243743,0.002001,83192.0,83191.0,2.59495242]
[1741846244182,0.002001,83192.0,83191.0,2.67015242]
[1741846245533,0.002001,83192.0,83191.0,2.47501023]
[1741846248243,0.002001,83192.0,83191.0,2.4870514]
[1741846248829,0.002001,83192.0,83191.0,0.9870514]
[1741846249209,0.002001,83192.0,83191.0,2.4870514]
[1741846249988,0.002001,83192.0,83191.0,2.3440514]
[1741846250230,0.002001,83192.0,83191.0,2.4862914]
[1741846250847,0.002001,83192.0,83191.0,2.3440514]
[1741846251063,0.002001,83192.0,83191.0,2.4862114]
[1741846255819,0.01315846,83192.0,83191.0,2.4862114]
[1741846257958,0.01315846,83192.0,83191.0,2.4863714]
[1741846258916,0.01315846,83192.0,83191.0,2.68951359]
[1741846259117,0.002001,83192.0,83191.0,2.68951359]
[1741846259327,0.002001,83192.0,83191.0,2.60631359]
[1741846259926,0.002001,83192.0,83191.0,3.02001359]
[1741846260982,0.002001,83192.0,83191.0,2.8999514]
[1741846262871,0.002001,83192.0,83191.0,3.01989359]
[1741846263085,0.002001,83192.0,83191.0,3.10159359]
[1741846264046,6.9e-07,83201.0,83200.0,0.452403]
[1741846264263,6.9e-07,83201.0,83200.0,1.04958604]
[1741846264477,6.9e-07,83201.0,83200.0,1.12638604]
[1741846264700,6.9e-07,83201.0,83200.0,2.71397118]
[1741846265926,0.00100069,83201.0,83200.0,2.71697118]
[1741846266266,0.00200069,83201.0,83200.0,2.72297118]
[1741846266582,0.00100069,83201.0,83200.0,2.71697118]
[1741846266983,0.00100069,83201.0,83200.0,2.66697118]
[1741846267222,0.00100069,83201.0,83200.0,2.28904519]
[1741846267423,0.00100069,83201.0,83200.0,2.50358604]
[1741846267631,6.9e-07,83201.0,83200.0,2.30058604]
[1741846268006,6.9e-07,83201.0,83200.0,2.31458604]
[1741846268007,0.00100069,83201.0,83200.0,2.31458604]
[1741846269220,0.00133969,83201.0,83200.0,2.31458604]
[1741846269803,6.9e-07,83201.0,83200.0,2.51458604]
[1741846270668,0.0751,83223.0,83218.0,0.012016]
[1741846270903,0.0751,83223.0,83218.0,0.252347]
[1741846271035,0.0751,83223.0,83220.0,0.240326]
[1741846271242,0.0751,83223.0,83221.0,0.012016]
[1741846271634,0.0751,83223.0,83205.0,0.24037]
[1741846271833,0.087317,83212.0,83206.0,0.14228]
[1741846272061,0.012017,83210.0,83206.0,0.14228]
[1741846272267,0.0753,83212.0,83207.0,0.012018]
[1741846272467,0.0753,83212.0,83211.0,0.252369]
[1741846273043,0.0793,83220.0,83215.0,0.252358]
[1741846273692,0.0793,83220.0,83219.0,0.252345]
[1741846274071,0.0793,83220.0,83217.0,0.012016]
[1741846274352,0.0793,83220.0,83219.0,0.012016]
[1741846274580,0.0793,83220.0,83217.0,0.012016]
[1741846274993,0.0793,83220.0,83218.0,0.012016]
[1741846275194,0.0793,83220.0,83214.0,0.240343]
[1741846275393,0.252349,83218.0,83217.0,0.003]
[1741846275624,0.252349,83218.0,83217.0,0.005]
[1741846276016,0.252349,83218.0,83217.0,0.003]
[1741846276197,0.252349,83218.0,83213.0,1.5]
[1741846276481,0.26348678,83218.0,83214.0,0.003]
[1741846277914,0.012016,83217.0,83214.0,0.003]
[1741846278118,0.012016,83217.0,83213.0,1.503]
[1741846278319,0.012017,83214.0,83213.0,1.503]
[1741846278727,0.012017,83214.0,83213.0,1.5]
[1741846279348,0.252354,83216.0,83213.0,1.5]
[1741846279612,0.091517,83214.0,83213.0,1.5]
[1741846279850,0.012018,83204.0,83197.0,0.012019]
[1741846280063,0.0795,83203.0,83202.0,0.1418]
[1741846280278,0.0795,83203.0,83202.0,1.6418]
[1741846280624,0.091518,83203.0,83202.0,1.5]
[1741846280859,0.01202,83192.0,83191.0,0.1420494]
[1741846281278,0.01202,83192.0,83191.0,1.5001694]
[1741846281404,0.09462,83192.0,83191.0,1.5001694]
[1741846282044,0.0826,83192.0,83191.0,1.5121894]
[1741846282242,0.01113778,83192.0,83191.0,1.51831409]
[1741846283047,0.01113778,83192.0,83191.0,1.53885494]
[1741846283262,0.01213778,83192.0,83191.0,1.65879713]
[1741846283729,0.001,83192.0,83191.0,1.65879713]
[1741846284538,0.082639,83217.0,83216.0,0.252354]
[1741846284885,0.082639,83217.0,83214.0,0.240342]
[1741846285123,0.082639,83217.0,83214.0,0.252359]
[1741846285610,0.082639,83217.0,83216.0,0.240338]
[1741846285835,0.000339,83217.0,83216.0,0.252354]
[1741846286081,0.000339,83217.0,83216.0,1.753354]
[1741846286293,0.000339,83217.0,83216.0,1.76689485]
[1741846287230,0.00038069,83217.0,83216.0,1.76689485]
[1741846288467,0.00038069,83217.0,83216.0,1.76789485]
[1741846289442,0.00038069,83217.0,83216.0,0.001]
[1741846289667,0.00038069,83217.0,83216.0,0.013016]
[1741846289857,0.00038069,83217.0,83216.0,1.51421764]
[1741846290031,0.00038069,83217.0,83216.0,1.513016]
[1741846293428,0.01239669,83217.0,83216.0,1.501]
[1741846293656,0.00038069,83217.0,83216.0,1.513016]
[1741846294108,0.00038069,83217.0,83216.0,0.001]
[1741846294344,0.01239669,83217.0,83216.0,0.001]
[1741846294807,0.25273169,83217.0,83216.0,0.001]
[1741846298582,0.32783169,83217.0,83216.0,0.001]
[1741846305436,0.07548069,83217.0,83216.0,0.001]
[1741846305657,0.08749669,83217.0,83216.0,0.001]
[1741846310147,0.07749669,83217.0,83216.0,0.001]
[1741846311216,0.012015,83225.0,83218.0,0.012016]
[1741846311441,0.012015,83225.0,83220.0,0.012016]
[1741846312122,0.0465,83227.0,83222.0,0.012016]
[1741846312349,0.01205668,83227.0,83222.0,0.012016]
[1741846312571,0.25236368,83227.0,83222.0,0.012016]
[1741846312816,0.001,83224.0,83222.0,0.012016]
[1741846313046,0.001,83224.0,83221.0,0.240323]
[1741846313269,0.001,83224.0,83221.0,0.252339]
[1741846313462,0.25236368,83227.0,83221.0,0.252339]
[1741846313688,0.25236368,83227.0,83222.0,0.012016]
[1741846313912,0.012015,83226.0,83221.0,0.252339]
[1741846314377,0.012016,83217.0,83216.0,0.14048]
[1741846314639,0.240335,83217.0,83216.0,0.14048]
[1741846314830,0.012016,83217.0,83216.0,0.14048]
[1741846315374,0.240323,83221.0,83216.0,0.14048]
[1741846315375,0.240323,83221.0,83216.0,0.392833]
[1741846315827,0.252337,83222.0,83216.0,0.012016]
[1741846316044,0.252337,83222.0,83216.0,0.153376]
[1741846316275,0.252337,83222.0,83217.0,1.5]
[1741846316935,0.002,83221.0,83217.0,1.5]
[1741846317395,0.001,83221.0,83217.0,1.5]
[1741846317612,0.252342,83220.0,83217.0,1.5]
[1741846318311,0.012016,83218.0,83217.0,1.5]
[1741846318543,0.252343,83221.0,83217.0,1.5]
[1741846318761,0.012016,83220.0,83217.0,1.5]
[1741846318978,0.252345,83219.0,83217.0,1.5]
[1741846319669,0.012016,83218.0,83217.0,1.5]
[1741846320991,0.24133,83219.0,83217.0,1.5]
[1741846321209,0.253346,83219.0,83217.0,1.5]
[1741846321427,0.001,83219.0,83217.0,1.5]
[1741846321646,0.001,83219.0,83216.0,0.14036]
[1741846322356,0.252676,83222.0,83216.0,0.380695]
[1741846322574,0.000339,83222.0,83221.0,0.012016]
[1741846323730,0.001339,83222.0,83219.0,1.5]
[1741846324177,0.000339,83222.0,83219.0,1.5]
[1741846324409,0.012016,83221.0,83219.0,1.5]
[1741846324599,0.000339,83222.0,83219.0,1.5]
[1741846325037,0.001339,83222.0,83219.0,1.5]
[1741846325301,0.000339,83222.0,83219.0,1.5]
[1741846325754,0.001,83221.0,83219.0,1.5]
[1741846326005,0.001339,83222.0,83219.0,1.5]
[1741846326887,0.002339,83222.0,83219.0,1.5]
[1741846327816,0.014355,83222.0,83219.0,1.5]
[1741846328733,0.252339,83221.0,83219.0,1.5]
[1741846328988,0.252369,83211.0,83210.0,0.005]
[1741846331063,0.328269,83211.0,83210.0,0.005]
[1741846331883,0.328269,83211.0,83210.0,0.008]
[1741846332092,0.328269,83211.0,83210.0,0.011]
[1741846332706,0.0759,83211.0,83210.0,0.011]
[1741846332910,0.0756,83216.0,83211.0,0.012017]
[1741846333112,0.0489,83220.0,83216.0,0.012016]
[1741846333338,0.012016,83220.0,83215.0,0.012017]
[1741846333524,0.32794,83221.0,83216.0,0.012016]
[1741846333826,0.012355,83222.0,83220.0,0.012016]
[1741846333827,0.000339,83222.0,83220.0,0.012016]
[1741846334054,0.012355,83222.0,83215.0,0.252358]
[1741846334255,0.252346,83219.0,83214.0,0.012017]
[1741846334431,0.252346,83219.0,83213.0,0.240345]
[1741846335595,0.012017,83213.0,83210.0,0.005]
[1741846336024,0.252339,83221.0,83212.0,0.012017]
[1741846336204,0.000339,83222.0,83214.0,0.240344]
[1741846336205,0.001,83219.0,83214.0,0.240344]
[1741846336467,0.001,83219.0,83218.0,0.012016]
[1741846336649,0.000339,83222.0,83221.0,0.012016]
[1741846337164,0.000339,83222.0,83221.0,1.512016]
[1741846337570,0.000339,83222.0,83221.0,0.012016]
[1741846337779,0.240323,83221.0,83218.0,0.13984]
[1741846338000,0.240339,83216.0,83212.0,0.02397677]
[1741846338217,0.252355,83216.0,83213.0,0.1398]
[1741846338895,0.012017,83215.0,83210.0,0.005]
[1741846339112,0.012017,83215.0,83211.0,0.1398]
[1741846339113,0.240344,83214.0,83211.0,0.1398]
[1741846339537,0.012016,83219.0,83213.0,0.001]
[1741846339766,0.012016,83219.0,83213.0,0.002]
[1741846339980,0.012016,83219.0,83213.0,0.001]
[1741846340294,0.012016,83219.0,83212.0,0.012017]
[1741846342189,0.012016,83218.0,83212.0,0.012017]
[1741846342798,0.000339,83222.0,83221.0,0.012016]
[1741846343000,0.000339,83222.0,83221.0,0.252339]
[1741846343410,0.012355,83222.0,83215.0,0.012017]
[1741846343619,0.252339,83221.0,83216.0,0.240337]
[1741846344139,0.000339,83222.0,83221.0,0.012016]
[1741846344948,0.000339,83222.0,83219.0,0.252345]
[1741846345158,0.000339,83222.0,83218.0,0.252347]
[1741846345357,0.000339,83222.0,83219.0,0.012016]
[1741846345590,0.001339,83222.0,83219.0,0.012016]
[1741846345798,0.001339,83222.0,83220.0,0.012016]
[1741846346033,0.001339,83222.0,83219.0,0.012016]
[1741846346223,0.252339,83221.0,83219.0,1.5]
[1741846346487,0.012016,83220.0,83219.0,1.5]
[1741846348231,0.001339,83222.0,83219.0,1.5]
[1741846348449,0.000339,83222.0,83219.0,1.5]
[1741846348901,0.252678,83222.0,83219.0,1.5]
[1741846349031,0.012016,83221.0,83219.0,1.5]
[1741846349481,0.000339,83222.0,83219.0,1.5]
[1741846349695,0.001339,83222.0,83221.0,0.012016]
[1741846351265,0.000339,83222.0,83221.0,0.02398217]
[1741846351463,0.000339,83222.0,83221.0,0.02298217]
[1741846352762,0.000339,83222.0,83221.0,1.52298217]
[1741846354229,0.000339,83222.0,83221.0,1.5]
[1741846354656,0.000339,83222.0,83219.0,0.240329]
[1741846355009,0.000339,83222.0,83221.0,0.012016]
[1741846355218,0.000339,83222.0,83221.0,1.512016]
[1741846355466,0.000339,83222.0,83221.0,1.514016]
[1741846355680,0.000339,83222.0,83221.0,1.512016]
[1741846355898,0.000339,83222.0,83221.0,1.651776]
[1741846356119,0.000339,83222.0,83221.0,1.6519454]
[1741846356912,0.000339,83222.0,83221.0,1.6529454]
[1741846357721,0.000339,83222.0,83221.0,1.6549454]
[1741846358111,0.000339,83222.0,83221.0,0.1549454]
[1741846358750,0.000339,83222.0,83221.0,1.6549454]
[1741846359397,0.000339,83222.0,83221.0,1.66948625]
[1741846359623,0.0003386,83250.0,83226.0,0.26686485]
[1741846359829,0.0003386,83250.0,83226.0,0.43370704]
[1741846360048,0.0003386,83250.0,83226.0,0.50890704]
[1741846360254,0.252268,83245.0,83226.0,2.00890704]
[1741846360469,0.012012,83245.0,83226.0,2.00890704]
[1741846360679,0.012013,83237.0,83226.0,1.88896485]
[1741846360898,0.012013,83237.0,83226.0,1.752324]
[1741846360899,0.012014,83234.0,83226.0,1.752324]
[1741846361491,0.240277,83238.0,83226.0,1.752324]
[1741846361690,0.25229,83238.0,83226.0,1.752324]
[1741846361828,0.25229,83238.0,83226.0,1.755324]
[1741846362031,0.252295,83236.0,83226.0,1.755324]
[1741846362450,0.252295,83236.0,83226.0,1.758324]
[1741846362877,0.25229,83238.0,83226.0,1.758324]
[1741846363915,0.012013,83237.0,83226.0,1.758324]
[1741846364567,0.012013,83237.0,83226.0,2.521284]
[1741846365162,0.012013,83237.0,83226.0,2.661044]
[1741846365723,0.3323896,83251.0,83226.0,2.67558485]
[1741846365928,0.0921496,83251.0,83226.0,2.67558485]
[1741846366137,0.3323876,83251.0,83226.0,2.67558485]
[1741846366551,0.01887252,83227.0,83226.0,2.67558485]
[1741846366758,0.01887252,83227.0,83226.0,2.67258485]
[1741846367167,0.01887252,83227.0,83226.0,2.53282485]
[1741846367379,0.01887252,83227.0,83226.0,2.67558485]
[1741846367957,0.01887252,83227.0,83226.0,2.67258485]
[1741846368413,0.01887252,83227.0,83226.0,2.67558485]
[1741846368817,0.01887252,83227.0,83226.0,2.67258485]
[1741846369168,0.01887252,83227.0,83226.0,2.67658485]
[1741846369736,0.01887252,83227.0,83226.0,2.68258485]
[1741846370385,0.01921132,83227.0,83226.0,2.68258485]
[1741846372134,0.01921132,83227.0,83226.0,2.80252704]
[1741846372333,0.01921132,83227.0,83226.0,2.88552704]
[1741846374388,0.01921132,83227.0,83226.0,2.68258485]
[1741846376346,0.01921132,83227.0,83226.0,2.68254485]
[1741846379146,0.01921132,83227.0,83226.0,2.54282485]
[1741846379308,0.01921132,83227.0,83226.0,2.68254485]
[1741846381729,0.01921132,83227.0,83226.0,2.41568]
[1741846381975,0.01921132,83227.0,83226.0,2.427695]
[1741846382422,0.01921132,83227.0,83226.0,2.44223585]
[1741846382875,0.01921132,83227.0,83226.0,2.43523585]
[1741846383086,0.01921132,83227.0,83226.0,2.43323585]
[1741846383330,0.01921132,83227.0,83226.0,2.43723585]
[1741846383770,0.01921132,83227.0,83226.0,2.42923585]
[1741846383978,0.01921132,83227.0,83226.0,2.414695]
[1741846384192,0.01921132,83227.0,83226.0,2.418695]
[1741846385180,0.01921132,83227.0,83226.0,2.43723585]
[1741846387848,0.01921132,83227.0,83226.0,2.422695]
[1741846388056,0.01921132,83227.0,83226.0,2.41068]
[1741846388274,0.03122632,83227.0,83226.0,2.27096]
[1741846388726,0.01921132,83227.0,83226.0,2.27096]
[1741846390555,0.01921132,83227.0,83226.0,2.282975]
[1741846390762,0.01921132,83227.0,83226.0,2.29751585]
[1741846391719,0.01921132,83227.0,83226.0,2.43723585]
[1741846393089,0.01921132,83227.0,83226.0,2.41068]
[1741846394369,0.03122632,83227.0,83226.0,2.27096]
[1741846394612,0.03122632,83227.0,83226.0,2.41068]
[1741846394807,0.08032632,83227.0,83226.0,0.77096]
[1741846395059,0.06149548,83227.0,83226.0,0.77096]
[1741846395518,0.06149548,83227.0,83226.0,2.27096]
[1741846395739,0.06149548,83227.0,83226.0,0.77096]
[1741846396887,0.14429548,83227.0,83226.0,0.008]
[1741846397522,0.14429548,83227.0,83226.0,0.004]
[1741846397962,0.012015,83223.0,83222.0,0.0001694]
[1741846398417,0.252333,83223.0,83222.0,0.0001694]
[1741846398682,0.328233,83223.0,83222.0,0.0001694]
[1741846398906,0.373833,83223.0,83222.0,0.0001694]
[1741846400303,0.143516,83222.0,83221.0,8e-07]
[1741846400518,0.193516,83222.0,83221.0,8e-07]
[1741846400744,0.383861,83214.0,83201.0,0.0001695]
[1741846400966,0.383861,83214.0,83213.0,4e-07]
[1741846401187,0.012017,83211.0,83210.0,4e-07]
[1741846401400,0.404669,83211.0,83210.0,4e-07]
[1741846402120,0.429669,83211.0,83210.0,4e-07]
[1741846404212,0.430669,83211.0,83210.0,4e-07]
[1741846404650,0.429669,83211.0,83210.0,4e-07]
[1741846405172,0.379669,83211.0,83210.0,0.0010004]
[1741846405409,0.404669,83211.0,83210.0,0.0010004]
[1741846406166,0.410669,83211.0,83210.0,0.0020004]
[1741846406392,0.42174507,83211.0,83210.0,0.0020004]
[1741846406591,0.42056507,83211.0,83210.0,0.0010004]
[1741846406994,0.42656507,83211.0,83210.0,0.0021698]
[1741846407294,0.42656507,83211.0,83210.0,8e-07]
[1741846407516,0.43356507,83211.0,83210.0,8e-07]
[1741846407726,0.66667386,83211.0,83210.0,8e-07]
[1741846407931,0.332796,83202.0,83201.0,0.0001695]
[1741846408628,0.35163824,83202.0,83201.0,0.0001695]
[1741846408833,0.36271431,83202.0,83201.0,0.0001695]
[1741846409212,0.36271431,83202.0,83201.0,0.00021119]
[1741846409920,0.36771431,83202.0,83201.0,0.00021119]
[1741846410959,0.37071431,83202.0,83201.0,0.00021119]
[1741846412500,0.29031431,83202.0,83201.0,0.00021119]
[1741846412732,0.03109407,83202.0,83201.0,0.00021119]
[1741846413434,0.02609407,83202.0,83201.0,0.00021119]
[1741846413668,0.03009407,83202.0,83201.0,0.00021119]
[1741846414771,0.02709407,83202.0,83201.0,0.00021119]
[1741846415003,0.03009407,83202.0,83201.0,0.00021119]
[1741846415958,0.04893487,83202.0,83201.0,0.00021119]
[1741846418480,0.12843487,83202.0,83201.0,0.00021119]
[1741846421481,0.1173588,83202.0,83201.0,0.00021119]
[1741846422365,0.1221798,83202.0,83201.0,0.00021119]
[1741846423003,0.1173588,83202.0,83201.0,0.00021119]
[1741846427157,0.01202,83193.0,83191.0,0.0001694]
[1741846427338,0.01207007,83193.0,83191.0,0.0001694]
[1741846427928,0.27131657,83193.0,83191.0,0.0001694]
[1741846429045,0.2834087,83193.0,83191.0,0.0001694]
[1741846429255,0.29453518,83193.0,83191.0,0.0001694]
[1741846432955,0.03001905,83193.0,83191.0,0.0001694]
[1741846433277,0.01117655,83193.0,83191.0,0.0001694]
[1741846433510,0.02319655,83193.0,83191.0,0.0001694]
[1741846435949,0.01207007,83193.0,83191.0,0.0001694]
[1741846436155,0.03091176,83193.0,83191.0,0.0001694]
[1741846438561,0.04206169,83193.0,83191.0,0.0001694]
[1741846440421,0.28246569,83193.0,83191.0,0.0001694]
[1741846440635,0.35836569,83193.0,83191.0,0.0001694]
[1741846441721,0.28246569,83193.0,83191.0,0.0001694]
[1741846441935,0.01202,83192.0,83191.0,0.0001694]
[1741846443423,0.01202,83192.0,83191.0,0.0011694]
[1741846443821,0.02316993,83192.0,83191.0,0.0011694]
[1741846445182,0.02292725,83192.0,83191.0,0.0011694]
[1741846448605,0.01202,83192.0,83191.0,0.0011694]
[1741846451470,0.27131576,83193.0,83191.0,0.0011694]
[1741846451718,0.25247407,83193.0,83191.0,0.0011694]
[1741846451901,0.01202,83192.0,83191.0,0.0011694]
[1741846452668,0.01202,83192.0,83191.0,0.0001694]
[1741846453743,0.01202,83192.0,83191.0,0.0011694]
[1741846454933,0.03086232,83192.0,83191.0,0.0011694]
[1741846455143,0.10896232,83192.0,83191.0,0.0011694]
[1741846455387,0.12012161,83192.0,83191.0,0.0011694]
[1741846456753,0.04202161,83192.0,83191.0,0.0011694]
[1741846456958,0.012021,83186.0,83180.0,0.0171915]
[1741846457177,0.252448,83185.0,83180.0,0.0051695]
[1741846457397,0.012021,83184.0,83180.0,0.0051695]
[1741846457601,0.240433,83183.0,83180.0,0.0051695]
[1741846458077,0.012021,83184.0,83180.0,0.0051695]
[1741846458308,0.01202,83188.0,83183.0,0.012021]
[1741846458539,0.24079607,83193.0,83186.0,0.012021]
[1741846458745,0.00038907,83193.0,83192.0,0.01202]
[1741846458963,0.00038907,83193.0,83190.0,0.252433]
[1741846458964,0.01884118,83192.0,83191.0,0.01202]
[1741846459214,0.01884118,83192.0,83189.0,0.01202]
[1741846461613,0.01884118,83192.0,83190.0,0.252433]
[1741846461823,0.01884118,83192.0,83187.0,0.0767]
[1741846461824,0.03086118,83192.0,83187.0,0.0767]
[1741846462239,0.27127018,83192.0,83187.0,0.0767]
[1741846462469,0.27127018,83192.0,83189.0,0.001]
[1741846462686,0.27127018,83192.0,83187.0,0.0767]
[1741846463160,0.27127018,83192.0,83190.0,0.001]
[1741846464014,0.27127018,83192.0,83187.0,0.0767]
[1741846464488,0.27127018,83192.0,83187.0,0.0777]
[1741846464684,0.27102747,83192.0,83187.0,0.0777]
[1741846465734,0.27102747,83192.0,83187.0,0.0767]
[1741846466127,0.01859847,83192.0,83190.0,1.194e-05]
[1741846466344,0.01859847,83192.0,83190.0,0.240413]
[1741846466563,0.01859847,83192.0,83191.0,0.01202]
[1741846466774,0.01859847,83192.0,83189.0,0.01202]
[1741846466948,0.01893727,83192.0,83189.0,0.01202]
[1741846467171,0.01893727,83192.0,83188.0,0.252437]
[1741846467376,0.01893727,83192.0,83190.0,0.001]
[1741846467578,0.01893727,83192.0,83188.0,0.252437]
[1741846467908,0.01893727,83192.0,83189.0,0.01202]
[1741846468753,0.01893727,83192.0,83188.0,0.252437]
[1741846468902,0.03095727,83192.0,83187.0,0.0767]
[1741846469116,0.25243,83191.0,83187.0,0.0767]
[1741846469321,0.01202,83190.0,83186.0,0.0481]
[1741846469550,0.252436,83189.0,83186.0,0.0481]
[1741846469946,0.252436,83189.0,83188.0,0.001]
[1741846470525,0.01893727,83192.0,83190.0,0.01202]
[1741846470921,0.01893727,83192.0,83187.0,0.012021]
[1741846471102,0.27136527,83192.0,83187.0,0.252442]
[1741846471308,0.27136527,83192.0,83188.0,0.002]
[1741846472463,0.240414,83190.0,83188.0,0.002]
[1741846472685,0.240414,83190.0,83184.0,0.252451]
[1741846473108,0.03095727,83192.0,83190.0,0.001]
[1741846473546,0.03095727,83192.0,83187.0,0.240422]
[1741846473755,0.03095727,83192.0,83188.0,0.001]
[1741846474082,0.03095727,83192.0,83187.0,0.240422]
[1741846474682,0.01202,83191.0,83190.0,0.001]
[1741846475960,0.01202,83191.0,83171.0,0.25517825]
[1741846475961,0.01202,83188.0,83182.0,0.13972]
[1741846476173,0.01202,83188.0,83183.0,1.5]
[1741846477521,0.25246,83181.0,83180.0,0.0051695]
[1741846478175,0.240433,83183.0,83180.0,0.0051695]
[1741846478614,0.012021,83182.0,83180.0,0.0051695]
[1741846478830,0.25246,83181.0,83180.0,0.0091695]